Cogmind - Beta 14 @@@ ROGUE MODE // 2025.01.16 @ 12:49:56 Player: celerysam Result: Destroyed by S-10 Pest with Light Assault Rifle Performance ------------- Evolutions (0) 0 Regions Visited (2) 400 Robots Destroyed (27) 135 Value Destroyed (866) 866 Prototype IDs (0) 0 Alien Tech Used (0) 0 Bonus (0) 0 TOTAL SCORE: 1401 Bonus ------- None Cogmind --------- Core Integrity 0/250 Matter 300/300 Energy 243/250 System Corruption 0% Temperature Cool (0) Movement Rolling (95) Ox1 Location -10/Subcaves Parts ------- > --- POWER (1) -------- Ion Engine > --- PROPULSION (2) --- Light Treads Wheel > --- UTILITY (2) ------ Small Storage Unit Structural Scanner > --- WEAPON (2) ------- Spread Laser Makeshift Axe > --- INVENTORY (8) ---- Ion Engine Cooling System Light Armor Plating EM Pulse Gun Medium Laser Subdweller Laser Battle Cannon Mini Grenade Launcher Peak State ------------ > --- POWER ------------ Ion Engine > --- PROPULSION ------- Light Treads Wheel > --- UTILITY ---------- Small Storage Unit Light Armor Plating > --- WEAPON ----------- Spread Laser Makeshift Axe > --- INVENTORY -------- Ion Engine Cooling System EM Pulse Gun Medium Laser Subdweller Laser Battle Cannon Mini Grenade Launcher [Rating: 12] Favorites ----------- Power Ion Engine Engine Ion Engine Propulsion Aluminum Leg Treads Light Treads Leg Aluminum Leg Wheel Wheel Utility Small Storage Unit Device Structural Scanner Storage Small Storage Unit Protection Light Armor Plating Weapon Spread Laser Energy Gun Spread Laser Launcher Mini Grenade Launcher Special Weapon Welding Torch Slashing Weapon Makeshift Axe Build | -11 -10 -10 ------- Run | Yrd Mat Sub Slots Evolved . | . . . Power . | . . . Propulsion . | . . . Utility . | . . . Weapon . | . . . Parts Attached 32 | 6 17 9 Power 4 | 1 3 . Engine 4 | 1 3 . Core . | . . . Reactor . | . . . Propulsion 9 | 2 5 2 Treads 2 | . 1 1 Leg 4 | . 4 . Wheel 3 | 2 . 1 Hover . | . . . Flight . | . . . Utility 8 | 1 4 3 Device 5 | . 3 2 Storage 1 | 1 . . Processor . | . . . Hackware . | . . . Protection 2 | . 1 1 Artifact . | . . . Weapon 11 | 2 5 4 Energy Gun 7 | 2 4 1 Energy Cannon . | . . . Ballistic Gun . | . . . Ballistic Cannon . | . . . Launcher 1 | . . 1 Special Weapon 2 | . 1 1 Impact Weapon . | . . . Slashing Weapon 1 | . . 1 Piercing Weapon . | . . . Special Melee Weapon . | . . . Unidentified Prototypes . | . . . Parts Lost 7 | . 3 4 Power 1 | . 1 . Propulsion 3 | . 1 2 Utility 2 | . 1 1 Weapon 1 | . . 1 Highest Loss Streak 2 | . 2 2 To Critical Strikes . | . . . Average Slot Usage (%) 92 | . 98 89 Engine 13 | . 13 14 Treads 9 | . 3 12 Leg 10 | . 21 5 Wheel 1 | . 3 . Device 6 | . 10 4 Storage 14 | . 14 14 Protection 7 | . 2 9 Energy Gun 18 | . 26 14 Launcher 2 | . . 3 Special Weapon 1 | . 2 . Slashing Weapon 6 | . . 9 Peak Build Rating 12 | 6 10 12 Average Rating 9 | 4 9 10 On Entrance 5 | . 6 9 Naked Turns . | . . . Heaviest Build 19 | 13 19 19 Greatest Support 26 | 26 26 20 Greatest Overweight (x) 1 | . 1 1 Average Overweight (x) . | . . . Largest Inventory Capacity 8 | 8 8 8 Average Capacity 7 | 7 8 8 Most Carried 8 | 6 8 8 Average Carried 7 | 3 7 7 Final Capacity 8 | 8 8 8 Final Carried 8 | 6 8 8 Class Distribution -------------------- 96% | Mutant 3% | Scavenger-Mutant Dominant Class ---------------- Mutant | -10/Materials Mutant | -10/Subcaves Resources | -11 -10 -10 ----------- Run | Yrd Mat Sub Matter Collected 614 | 214 235 165 Remotely . | . . . Salvage Created 717 | . 491 226 Parts 43 | . 28 15 Haulers Intercepted . | . . . Recyclers Shooed . | . . . Parts Field Recycled . | . . . Retrieved Matter . | . . . Parts Self-Destructed 9 | . . 9 Prevented . | . . . Kills | -11 -10 -10 ------- Run | Yrd Mat Sub Combat Hostiles Destroyed 25 | . 16 9 Melee 3 | . . 3 Guns 21 | . 16 5 AOE 1 | . . 1 Classes Destroyed 5 | . 3 2 Watcher 2 | . 2 . Swarmer 4 | . 2 2 Grunt 15 | . 14 1 Sentry 1 | . . 1 Subdweller 5 | . . 5 Best Kill Streak 4 | . 4 2 Combat Bots Only 3 | . 3 2 Max Kills in Single Turn 1 | . 1 1 Gunslinging . | . . . Exploded 1 | . . 1 Melee 1 | . . 1 Uniques/NPCs Destroyed . | . . . Combat | -11 -10 -10 -------- Run | Yrd Mat Sub Hostile Shots Fired 138 | . 100 38 Missed 47 | . 34 13 Damage Taken 1287 | . 780 507 Core 255 | . 127 128 Absorbed by Shields . | . . . Core Remaining (%) 100 | 100 . . Volleys Fired 76 | . 47 29 Largest 2 | . 2 2 Hottest 130 | . 130 115 Shots Fired 120 | . 86 34 Gun 99 | . 79 20 Cannon . | . . . Launcher 9 | . . 9 Special 12 | . 7 5 Kinetic . | . . . Thermal 111 | . 86 25 Explosive 9 | . . 9 Electromagnetic . | . . . Robot Hit Streak 11 | . 9 11 Robot Miss Streak 7 | . 7 4 Penetration Max . | . . . Secondary Targets 2 | . 2 . Max Gunslinging Chain 1 | . 1 . Shots Hit Robots 89 | . 67 22 Core Hits 113 | . 83 30 Critical Kills . | . . . Critical Parts Destroyed . | . . . Critical Strikes . | . . . Melee Attacks 30 | . . 30 Impact . | . . . Slashing 30 | . . 30 Piercing . | . . . Sneak Attacks . | . . . Combat Hostiles . | . . . Follow-up Attacks . | . . . Damage Inflicted 1435 | . 855 580 Guns 1106 | . 855 251 Cannons . | . . . Explosions 221 | . . 221 Melee 108 | . . 108 Ramming . | . . . Kinetic . | . . . Thermal 1106 | . 855 251 Explosive 221 | . . 221 Electromagnetic . | . . . Impact . | . . . Slashing 108 | . . 108 Piercing . | . . . Highest Corruption . | . . . Average Corruption . | . . . Corruption Purged . | . . . Corruption Blocked . | . . . Overload Shots . | . . . Overflow Damage 22 | . . 22 Projectiles . | . . . Explosions 22 | . . 22 Melee . | . . . Knockbacks . | . . . Impact . | . . . Kinetic . | . . . Secondary . | . . . Self-Inflicted Damage 98 | . . 98 Shots 3 | . . 3 Rammed . | . . . Targets Rammed . | . . . Kicked . | . . . Crushed . | . . . Highest Temperature 533 | . 533 1 Average Temperature 149 | . 151 1 Received Heat Transfer 528 | . 438 90 Effects 3 | . 3 . Shutdowns 1 | . 1 . Matter Decay 1 | . 1 . Damage (minor) 1 | . 1 . Siege Activations . | . . . Robots Corrupted . | . . . Combat Hostiles . | . . . Parts Fried . | . . . Impact Corruptions . | . . . Robots Melted . | . . . Combat Hostiles . | . . . Parts Melted 2 | . 1 1 Heat Transferred 1617 | . 1268 349 Parts Sabotaged . | . . . Parts Stolen . | . . . Parts Stripped . | . . . Power Chain Reactions . | . . . Alert | -11 -10 -10 ------- Run | Yrd Mat Sub Peak Influence 269 | . 269 . Initial . | . . . Average 102 | . 109 . Maximum Alert Level 1 | . 1 . Low Security (%) 84 | 100 83 . Level 1 15 | . 16 . Level 2 . | . . . Level 3 . | . . . Level 4 . | . . . Level 5 . | . . . High Security . | . . . Max Security . | . . . Squads Dispatched 5 | . 5 . Investigation 3 | . 3 . Extermination . | . . . Reinforcement 2 | . 2 . Assault . | . . . Garrison . | . . . Intercept . | . . . Searches Triggered . | . . . Construction Impeded . | . . . Haulers Reinforced . | . . . Active Scanning Responses . | . . . Cargo Convoy Interrupts . | . . . Stealth | -11 -10 -10 --------- Run | Yrd Mat Sub Distress Signals 3 | . 3 . Communications Jammed . | . . . Distress Signals . | . . . Times Spotted 34 | . 22 12 Peak Tracking Total 5 | . 4 5 Tactical Retreats 1 | . . 1 Traps | -11 -10 -10 ------- Run | Yrd Mat Sub Traps Triggered 3 | . 3 . Indirectly . | . . . Trap Hack Attempts . | . . . Triggered . | . . . Disarmed . | . . . Reprogrammed . | . . . Reused . | . . . Traps Extracted . | . . . Installed . | . . . Triggered 1 | . . 1 Machines | -11 -10 -10 ---------- Run | Yrd Mat Sub Machines Disabled . | . . . Max in Single Turn . | . . . Machines Repaired . | . . . Machines Dismantled . | . . . Machines Sabotaged . | . . . Overloaded Fab Kills . | . . . Hacking | -11 -10 -10 --------- Run | Yrd Mat Sub Machines Accessed 2 | . 2 . Terminals 2 | . 2 . Fabricators . | . . . Repair Stations . | . . . Recycling Units . | . . . Scanalyzers . | . . . Garrison Access . | . . . Total Hacks 3 | . 3 . Successful 1 | . 1 . Failed 2 | . 2 . Catastrophic . | . . . Database Lockouts . | . . . Manual 2 | . 2 . Terminals 3 | . 3 . Fabricators . | . . . Repair Stations . | . . . Recycling Units . | . . . Scanalyzers . | . . . Garrison Access . | . . . Terminal Hacks . | . . . Fabricator Hacks . | . . . Repair Station Hacks . | . . . Recycling Unit Hacks . | . . . Scanalyzer . | . . . Garrison Access Hacks . | . . . Unauthorized Hacks 1 | . 1 . Terminals 1 | . 1 . Botnet 1 | . 1 . Fabricators . | . . . Repair Stations . | . . . Recycling Units . | . . . Scanalyzers . | . . . Garrison Access . | . . . Data Cores Recovered . | . . . Used . | . . . Hacking Detections . | . . . Full Trace Events . | . . . Feedback Events . | . . . Feedback Blocked . | . . . Robot Schematics Acquired . | . . . Robots Built . | . . . Authchips . | . . . Time . | . . . Total Robot Build Rating . | . . . Part Schematics Acquired . | . . . Parts Built . | . . . Authchips . | . . . Time . | . . . Total Part Build Rating . | . . . Parts Repaired . | . . . Time . | . . . Parts Recycled . | . . . Recycled Matter . | . . . Retrieved Matter . | . . . Retrieved Components . | . . . Parts Scanalyzed . | . . . Part Schematics Acquired . | . . . Parts Damaged . | . . . Bothacking | -11 -10 -10 ------------ Run | Yrd Mat Sub Used RIF Installer . | . . . Robots Hacked . | . . . Non-combat . | . . . Combat . | . . . Robot Hacks Applied . | . . . Relay Couplers Released . | . . . Fabnet Peak Effective % . | . . . Robots Rewired . | . . . Allies Hacked . | . . . Hacks Repelled . | . . . Allies | -11 -10 -10 -------- Run | Yrd Mat Sub Total Allies . | . . . Largest Group . | . . . Highest-Rated Group . | . . . Highest-Rated Ally . | . . . Total Orders . | . . . Ally Attacks . | . . . Total Damage . | . . . Kills . | . . . Allies Corrupted . | . . . Allies Melted . | . . . Intel | -11 -10 -10 ------- Run | Yrd Mat Sub Robot Analysis Total . | . . . Derelict Logs Recovered 1 | . . 1 Drone Launches . | . . . Drone Recoveries . | . . . Exploration | -11 -10 -10 ------------- Run | Yrd Mat Sub Turns Passed 2702 | 57 836 1809 Spaces Moved 1673 | 45 526 1102 Core 2 | 2 . . Treads 1007 | . 107 900 Legs 496 | . 355 141 Wheels 168 | 43 64 61 Hover . | . . . Flight . | . . . Fastest Speed 50 | 50 90 95 Average Speed 141 | 88 124 151 Slowest Speed 190 | 90 190 190 Overloaded Moves . | . . . Propulsion Burnouts . | . . . Robots Hopped . | . . . Cave-ins Triggered . | . . . Exploration Rate (%) 47 | 3 82 56 Regions Visited 2 Branch Regions 1 Pre-discovered Areas . | . . . Known Exits Taken . | . . . Unknown Exits Taken 2 | 1 1 . Scrap Searched 3 | . . 3 Spaces Dug 14 | . . 14 Terrain Destroyed 71 | . . 71 Melee 14 | . . 14 Projectile . | . . . AOE 57 | . . 57 Terrain Rammed . | . . . Walls Destroyed . | . . . Machines Disabled . | . . . Actions | -11 -10 -10 --------- Run | Yrd Mat Sub Total 1858 | 62 619 1177 Wait 8 | . 8 . Move 1671 | 44 525 1102 Hop . | . . . Pick Up 28 | 12 11 5 Fast Attach 3 | . 2 1 Attach 15 | 6 5 4 Detach 1 | . 1 . Swap 14 | . 10 4 Drop 12 | . 10 2 Fire 76 | . 47 29 Melee 30 | . . 30 Ram . | . . . Kick . | . . . Crush . | . . . Escape Stasis . | . . . Rewire . | . . . Trap . | . . . Miscellaneous . | . . . Route ------- -11/Scrapyard -10/Materials (discovered 4 exits: [*Mat x2] / [*Min] / [*Sub]) -10/Subcaves (discovered 1 exit: [*Mat]) History --------- Turn | Location | Event 22 | -11/Scrapyard | Discovered new exit (range 16) 58 | -11/Scrapyard | Entered Materials 242 | -10/Materials | Discovered new exit (range 14) 303 | -10/Materials | Build established: Mutant 589 | -10/Materials | Discovered new exit (range 16) 758 | -10/Materials | Discovered new exit (range 16) 766 | -10/Materials | Core integrity fell below 50% 882 | -10/Materials | Discovered new exit (range 11) 894 | -10/Materials | Entered Subcaves 960 | -10/Subcaves | Ambushed by Subdweller buried in earth 1017 | -10/Subcaves | Learned Materials trap positions 1086 | -10/Subcaves | Ambushed by Subdweller buried in earth 1097 | -10/Subcaves | Core integrity fell below 20% 1113 | -10/Subcaves | Shifting Twisted Machinery released Sub. Beam Cannon 1170 | -10/Subcaves | Shifting Twisted Machinery released Mak. Sword 1171 | -10/Subcaves | A swath of the cavern ceiling suddenly collapsed 1910 | -10/Subcaves | Discovered new exit (range 9) 2066 | -10/Subcaves | Disturbed a concealed Subdweller 2703 | -10/Subcaves | Destroyed by S-10 Pest with Light Assault Rifle Last Messages --------------- 02451_ GG-OLV(u) tweaks Twisted Machinery. 02465_ GG-OLV(u) builds Twisted Machinery. 02486_ GG-OLV(u) tweaks Twisted Machinery. 02512_ GG-OLV(u) deconstructs Twisted Machinery. 02623_ S-10 Pest destroyed. 02624_ Subatomizers dissect the Lgt. Assault Rifle. 02625_ S-10 Pest destroyed. 02634_ Lgt. Assault Rifle fries itself beyond repair. 02635_ Subatomizers dissect the Lgt. Assault Rifle. 02637_ Flight Unit fries itself beyond repair. 02637_ Acquired Structural Scanner. 02638_ Acquired 10 matter. 02639_ Flight Unit fries itself beyond repair. 02640_ Acquired 10 matter. 02642_ Lgt. Assault Rifle fries itself beyond repair. Map ----- +----------------------------------------------------+ | ???????????????????????????????????????????????? | | ???????????????????????????????????????????????? | | ???????????????????????????????????????????????? | | ???????????????????????????????????????????????? | | ???????????????????????????????????????????????? | | ???????????????????????????????????????????????? | | ???????????????????????????????????????????????? | | ???????????????????????????????????????????????? | | ???????????????????????????????????????????????? | | ???????????????????????????????????????????????? | | ???????????????????????????????????????????????? | | ???????????????????????????????????????????????? | | ???????????????????????????????????????????????? | | ?#######??????????????????????? ##?????????????? | | ?########?????????????????????? ##?????????????? | | ?## ###?????????????????????? ##?????????????? | | ??## ##????????????????????? ##?????????????? | | ??## ##???????????????????? ##?????????????? | | ?#### ##???????????????????? #???????????????? | | ##### ##???????????#####??? ##???????????????? | | ### ##???????????######## ##???????????????? | | ## ##???????????## #### ###??????????????? | | # ##???????????## ## ###??????????????? | | #### ##???????????## ##??????????????? | | #### ##???????????## ###??????????????? | | ### ##???????????## @ #####???????????????? | | ## ###???????????### ###?????????????????? | | ###???????????#### ###?????????????????? | | ###????? "??####s ##?????????????????? | | ########"####### ##?????????????????? | | # # ####### ###### ###????????????????? | | ### ## # ## # # ####???????????????? | | ####### ####### ####??????????????? | | #### ##### ###??????????????? | | ## #### ##??????????????? | | % ## ### ##??????????????? | | ## ## ##??????????????? | | ### ## ### ##??????????????? | | ## ##### ### #### #######??????????????? | | ## ######### ###### ########??????????????? | | ####" """" #####? ####???????????????????? | | % ## "## ##???? ###????????????????????? | | # "######???? ##?????????????????????? | | % ??######???? #?????????????????????? | | ???????????# ##?????????????????????? | | ????????????## ##?????????????????????? | | # ????????????## #?????????????????????? | | ## ??????????????? ???????????????????????? | | ????????????????????????????????????????????? | | ???????????????????????????????????????????????? | +----------------------------------------------------+ Best States ------------- Heat Dissipation 47 Energy Generation 10 Energy Capacity 250 Matter Stores 300 Matter Capacity 300 Sight Range 21 Terrain Scan Range 14 Terrain Scan Density 10 Armor Coverage 150 Evasion (%) 55 Recoil Reduction 1 Item Schematics ----------------- None Robot Schematics ------------------ None Fabricated ------------ Nothing Alien Tech Used ----------------- None Achievements -------------- None Challenges ------------ None Game ------ Seed CompactDynamicCharger Manual? 0 Play Time 00:20:26 Cumulative 194.8 hours Start 2025.01.16 @ 12:09:47 End 2025.01.16 @ 12:49:56 Sessions 1 Manual Loads 0 Difficulty Rogue Special Mode None Game No. 269 Rogue 269 Adventurer 0 Explorer 0 Win Type - Total 1 Types 1/0/0/0/0/0/0/0/0 Lore% 33 Gallery% 62 Achievement% 42 Wizard Run 0 Options --------- Layout 1 ASCII 0 Keyboard 0 Movement Mouse Keybinds 0 Fullscreen 2 Font 24/Smallcaps Map View 50x35 Zoom Use 0% Tactical HUD 1 Map Filters NONE Filters NONE Steam 1 RUN: b666273e-0555-491a-bed7-cde4ffc3d41e